[Event "European Women Rapid-ch 2023"]
[Site "Monaco"]
[Date "2024.01.14"]
[Round "8.10"]
[White "Cramling, Pia"]
[Black "Piddubna, Bozhena"]
[Result "1-0"]
[ECO "A17"]
[WhiteElo "2437"]
[BlackElo "2035"]
[Annotator "RC"]
[PlyCount "83"]
[EventDate "2023.12.19"]
[EventType "swiss"]
[EventCountry "MNC"]
[SourceTitle "playchess.com"]
[Source "ChessBase"]
[SourceQuality "1"]
[TimeControl "900+10"]

1. Nf3 {[%emt 0:00:02]} Nf6 {[%emt 0:00:01]} 2. c4 {[%emt 0:00:02]} e6 {[%emt 0:00:02]} 3. Nc3 {[%emt 0:00:02]} b6 {[%emt 0:00:11]} 4. e4 {[%emt 0:00:02]} Bb7 {[%emt 0:00:02]} 5. d3 {[%emt 0:00:02]} d6 {[%emt 0:00:26]} 6. g3 {[%emt 0:00:10]} Be7 {[%emt 0:00:13]} 7. Bg2 {[%emt 0:00:02]} O-O {[%emt 0:00:02]} 8. O-O {[%emt 0:00:10]} c5 {[%emt 0:00:21]} 9. Re1 {[%emt 0:00:18]} Nc6 {[%emt 0:01:24]} 10. d4 {[%emt 0:00:10]} cxd4 {[%emt 0:00:21]} 11. Nxd4 {[%emt 0:00:02]} Rc8 {[%emt 0:00:06]} 12. b3 {[%emt 0:00:20]} Nd7 {[%emt 0:03:12]} 13. Bb2 {[%emt 0:00:32]} Nc5 {[%emt 0:00:02]} 14. Nxc6 {[%emt 0:01:44]} Bxc6 {[%emt 0:00:19]} 15. b4 {[%emt 0:00:35]} Nd7 {[%emt 0:00:02]} 16. Qd4 {[%emt 0:00:19]} Bf6 {[%emt 0:03:01]} 17. Qxd6 {[%emt 0:00:35]} Be7 {[%emt 0:00:03]} 18. Qf4 {[%emt 0:02:39]} Bxb4 {[%emt 0:00:39]} 19. Red1 {[%emt 0:00:14]} Qe7 {[%emt 0:00:46]} 20. a3 {[%emt 0:01:01]} Bxc3 {[%emt 0:01:23]} 21. Bxc3 {[%emt 0:00:01]} e5 {[%emt 0:00:01]} 22. Qf5 {[%emt 0:01:50]} Ba4 {[%emt 0:00:36]} 23. Bb4 {[%emt 0:01:05]} Nc5 {[%emt 0:00:01]} 24. Rd5 {[%emt 0:00:39]} f6 {[%emt 0:00:52]} 25. Bh3 {[%emt 0:00:16]} Qb7 {[%emt 0:03:34]} 26. Rb1 {[%emt 0:02:32]} Qa8 {[%emt 0:01:36]} 27. Bxc5 {[%emt 0:01:16]} Rxc5 {[%emt 0:00:02]} 28. Qe6+ {[%emt 0:00:03]} Kh8 {[%emt 0:00:01]} 29. Rxc5 {[%emt 0:01:00]} bxc5 {[%emt 0:00:01]} 30. Qd5 {[%emt 0:00:22]} Bc6 {[%emt 0:00:05]} 31. Qxc5 {[%emt 0:00:02]} Bxe4 {[%emt 0:00:04]} 32. Rd1 {[%emt 0:00:08]} h5 {[%emt 0:00:42]} 33. Rd7 {[%emt 0:00:24]} Rd8 {[%emt 0:00:14]} 34. Qe7 {[%emt 0:00:42]} Rxd7 {[%emt 0:00:12]} 35. Qxd7 {[%emt 0:00:01]} Qb8 {[%emt 0:00:07]} 36. c5 {[%emt 0:00:50]} Qb1+ {[%emt 0:00:11]} 37. Bf1 {[%emt 0:00:01]} Qc1 {[%emt 0:00:11]} 38. Qe8+ {[%emt 0:00:17]} Kh7 {[%emt 0:00:01]} 39. Qxh5+ {[%emt 0:00:01]} Kg8 {[%emt 0:00:01]} 40. Qe2 {[%emt 0:00:22]} Bd5 {[%emt 0:00:08]} 41. Qe3 {[%emt 0:00:06]} Bc4 {[%emt 0:00:03]} 42. Qxc1 {[%emt 0:00:02]} 1-0

[Event "European Women Rapid-ch 2023"]
[Site "Monaco"]
[Date "2024.01.14"]
[Round "8.11"]
[White "Khademalsharieh, Sarasadat"]
[Black "Navrotescu, Andreea"]
[Result "1/2-1/2"]
[ECO "D36"]
[WhiteElo "2486"]
[BlackElo "2222"]
[Annotator "RC"]
[PlyCount "63"]
[EventDate "2023.12.19"]
[EventType "swiss"]
[EventCountry "MNC"]
[SourceTitle "playchess.com"]
[Source "ChessBase"]
[SourceQuality "1"]
[TimeControl "900+10"]

1. d4 {[%emt 0:00:04]} d5 {[%emt 0:01:20]} 2. c4 {[%emt 0:00:16]} e6 {[%emt 0:00:20]} 3. Nc3 {[%emt 0:00:07]} Nf6 {[%emt 0:00:06]} 4. cxd5 {[%emt 0:00:14]} exd5 {[%emt 0:00:02]} 5. Bg5 {[%emt 0:00:02]} Be7 {[%emt 0:00:02]} 6. e3 {[%emt 0:00:04]} O-O {[%emt 0:00:02]} 7. Qc2 {[%emt 0:00:13]} Re8 {[%emt 0:00:16]} 8. Bd3 {[%emt 0:00:04]} h6 {[%emt 0:00:04]} 9. Bh4 {[%emt 0:00:07]} c6 {[%emt 0:00:51]} 10. Nge2 {[%emt 0:00:15]} Ne4 {[%emt 0:00:15]} 11. Bxe7 {[%emt 0:00:21]} Qxe7 {[%emt 0:00:03]} 12. Nxe4 {[%emt 0:01:27]} dxe4 {[%emt 0:00:02]} 13. Bc4 {[%emt 0:00:01]} Nd7 {[%emt 0:02:07]} 14. a3 {[%emt 0:00:14]} Nf6 {[%emt 0:00:09]} 15. O-O {[%emt 0:00:15]} Be6 {[%emt 0:00:43]} 16. Bxe6 {[%emt 0:00:23]} Qxe6 {[%emt 0:00:04]} 17. Rfc1 {[%emt 0:00:20]} Nd5 {[%emt 0:00:22]} 18. Nc3 {[%emt 0:00:26]} Rad8 {[%emt 0:00:13]} 19. Qb3 {[%emt 0:00:24]} Re7 {[%emt 0:01:06]} 20. Ne2 {[%emt 0:02:33]} Qg4 {[%emt 0:00:15]} 21. Qd1 {[%emt 0:00:36]} Qg5 {[%emt 0:01:28]} 22. Rc5 {[%emt 0:00:57]} h5 {[%emt 0:03:49]} 23. Nf4 {[%emt 0:00:35]} h4 {[%emt 0:00:03]} 24. Nxd5 {[%emt 0:02:47]} Rxd5 {[%emt 0:00:35]} 25. Rxd5 {[%emt 0:00:01]} cxd5 {[%emt 0:00:21]} 26. h3 {[%emt 0:00:02]} Rc7 {[%emt 0:00:20]} 27. Rc1 {[%emt 0:00:01]} Qd8 {[%emt 0:00:24]} 28. Rc5 {[%emt 0:00:50]} b6 {[%emt 0:00:30]} 29. Rxc7 {[%emt 0:01:30]} Qxc7 {[%emt 0:00:02]} 30. Qb3 {[%emt 0:00:42]} Qc1+ {[%emt 0:00:08]} 31. Kh2 {[%emt 0:00:01]} Qc7+ {[%emt 0:00:02]} 32. Kg1 {[%emt 0:00:03]} 1/2-1/2

[Event "European Women Rapid-ch 2023"]
[Site "Monaco"]
[Date "2024.01.14"]
[Round "8.12"]
[White "Hoang, Thanh Trang"]
[Black "Charkhalashvili, Inga"]
[Result "1/2-1/2"]
[ECO "E14"]
[WhiteElo "2382"]
[BlackElo "2239"]
[Annotator "RC"]
[PlyCount "106"]
[EventDate "2023.12.19"]
[EventType "swiss"]
[EventCountry "MNC"]
[SourceTitle "playchess.com"]
[Source "ChessBase"]
[SourceQuality "1"]
[TimeControl "900+10"]

1. d4 {[%emt 0:00:03]} Nf6 {[%emt 0:00:01]} 2. Nf3 {[%emt 0:00:05]} e6 {[%emt 0:00:03]} 3. e3 {[%emt 0:00:05]} b6 {[%emt 0:00:16]} 4. Bd3 {[%emt 0:00:06]} Bb7 {[%emt 0:00:02]} 5. O-O {[%emt 0:00:06]} Be7 {[%emt 0:00:24]} 6. c4 {[%emt 0:00:10]} d5 {[%emt 0:00:05]} 7. Nc3 {[%emt 0:00:58]} O-O {[%emt 0:00:04]} 8. cxd5 {[%emt 0:00:09]} Nxd5 {[%emt 0:00:39]} 9. e4 {[%emt 0:01:50]} Nb4 {[%emt 0:02:10]} 10. Be2 {[%emt 0:01:37]} c5 {[%emt 0:00:26]} 11. dxc5 {[%emt 0:01:26]} bxc5 {[%emt 0:01:18]} 12. Bf4 {[%emt 0:01:19]} Nd7 {[%emt 0:01:43]} 13. Qb3 {[%emt 0:00:30]} Qb6 {[%emt 0:00:41]} 14. Rfd1 {[%emt 0:01:05]} Nf6 {[%emt 0:01:52]} 15. a3 {[%emt 0:00:39]} Nc6 {[%emt 0:01:29]} 16. Qxb6 {[%emt 0:00:17]} axb6 {[%emt 0:00:01]} 17. e5 {[%emt 0:01:06]} Nd5 {[%emt 0:01:10]} 18. Bd2 {[%emt 0:00:25]} Na5 {[%emt 0:00:21]} 19. Be1 {[%emt 0:00:26]} Rfd8 {[%emt 0:00:18]} 20. Bb5 {[%emt 0:00:41]} Nb3 {[%emt 0:00:30]} 21. Rab1 {[%emt 0:00:16]} Nf4 {[%emt 0:00:17]} 22. Ne2 {[%emt 0:02:20]} Ng6 {[%emt 0:03:25]} 23. Bc3 {[%emt 0:00:43]} Be4 {[%emt 0:00:14]} 24. Rxd8+ {[%emt 0:00:05]} Rxd8 {[%emt 0:00:01]} 25. Re1 {[%emt 0:00:09]} Bxf3 {[%emt 0:00:12]} 26. gxf3 {[%emt 0:00:10]} Nh4 {[%emt 0:00:04]} 27. Bc6 {[%emt 0:00:19]} Rd3 {[%emt 0:00:34]} 28. Nc1 {[%emt 0:01:20]} Nxc1 {[%emt 0:00:05]} 29. Rxc1 {[%emt 0:00:02]} Nxf3+ {[%emt 0:00:06]} 30. Bxf3 {[%emt 0:00:34]} Rxf3 {[%emt 0:00:02]} 31. Rd1 {[%emt 0:00:01]} h5 {[%emt 0:00:53]} 32. Rd7 {[%emt 0:00:07]} Bh4 {[%emt 0:00:03]} 33. Rb7 {[%emt 0:00:23]} Rxf2 {[%emt 0:00:40]} 34. Rxb6 {[%emt 0:00:14]} Rc2 {[%emt 0:00:04]} 35. a4 {[%emt 0:00:07]} Bf2+ {[%emt 0:00:18]} 36. Kf1 {[%emt 0:00:04]} Be3 {[%emt 0:00:21]} 37. h4 {[%emt 0:00:13]} g5 {[%emt 0:00:03]} 38. a5 {[%emt 0:00:09]} g4 {[%emt 0:00:10]} 39. Be1 {[%emt 0:00:06]} c4 {[%emt 0:00:07]} 40. Rb7 {[%emt 0:00:15]} Kg7 {[%emt 0:00:12]} 41. a6 {[%emt 0:00:04]} Kg6 {[%emt 0:00:05]} 42. a7 {[%emt 0:00:22]} Bxa7 {[%emt 0:00:01]} 43. Rxa7 {[%emt 0:00:01]} Rxb2 {[%emt 0:00:01]} 44. Rc7 {[%emt 0:00:11]} Rc2 {[%emt 0:00:08]} 45. Bg3 {[%emt 0:00:08]} Rc3 {[%emt 0:00:02]} 46. Kg2 {[%emt 0:00:16]} Rc2+ {[%emt 0:00:09]} 47. Bf2 {[%emt 0:00:20]} Rc3 {[%emt 0:00:03]} 48. Bd4 {[%emt 0:00:22]} Rc2+ {[%emt 0:00:16]} 49. Kg3 {[%emt 0:00:05]} Rc1 {[%emt 0:00:06]} 50. Be3 {[%emt 0:00:26]} Rc3 {[%emt 0:00:16]} 51. Kf2 {[%emt 0:00:13]} Rc2+ {[%emt 0:00:50]} 52. Kg3 {[%emt 0:00:07]} Rc3 {[%emt 0:00:01]} 53. Kf2 {[%emt 0:00:09]} Rc2+ {[%emt 0:00:05]} 1/2-1/2

[Event "European Women Rapid-ch 2023"]
[Site "Monaco"]
[Date "2024.01.14"]
[Round "8.13"]
[White "Vega Gutierrez, Sabrina"]
[Black "Calzetta Ruiz, Monica"]
[Result "0-1"]
[ECO "B20"]
[WhiteElo "2378"]
[BlackElo "2241"]
[Annotator "RC"]
[PlyCount "54"]
[EventDate "2023.12.19"]
[EventType "swiss"]
[EventCountry "MNC"]
[SourceTitle "playchess.com"]
[Source "ChessBase"]
[SourceQuality "1"]
[TimeControl "900+10"]

1. e4 {[%emt 0:00:02]} c5 {[%emt 0:00:02]} 2. b3 {[%emt 0:00:01]} Nc6 {[%emt 0:00:03]} 3. Bb2 {[%emt 0:00:02]} e5 {[%emt 0:00:02]} 4. Bc4 {[%emt 0:00:06]} Nf6 {[%emt 0:00:02]} 5. Nc3 {[%emt 0:00:19]} g6 {[%emt 0:00:02]} 6. Nge2 {[%emt 0:02:46]} Bg7 {[%emt 0:00:03]} 7. O-O {[%emt 0:00:03]} O-O {[%emt 0:00:03]} 8. d3 {[%emt 0:00:02]} a6 {[%emt 0:00:06]} 9. a4 {[%emt 0:00:03]} Rb8 {[%emt 0:00:07]} 10. f4 {[%emt 0:00:17]} exf4 {[%emt 0:00:23]} 11. Nxf4 {[%emt 0:00:33]} d6 {[%emt 0:04:24]} 12. Ncd5 {[%emt 0:02:09]} Nxd5 {[%emt 0:01:19]} 13. Bxg7 {[%emt 0:00:04]} Ne3 {[%emt 0:00:04]} 14. Qf3 {[%emt 0:02:43]} Nxc4 {[%emt 0:04:14]} 15. Nh5 {[%emt 0:02:14]} N4e5 {[%emt 0:01:53]} 16. Qg3 {[%emt 0:02:28]} Nd4 {[%emt 0:00:02]} 17. Rae1 {[%emt 0:00:18]} Ng4 {[%emt 0:02:07]} 18. h3 {[%emt 0:01:17]} gxh5 {[%emt 0:00:20]} 19. Bf6 {[%emt 0:00:46]} Qd7 {[%emt 0:00:10]} 20. Qh4 {[%emt 0:00:02]} Nxf6 {[%emt 0:01:36]} 21. Qg5+ {[%emt 0:00:01]} Kh8 {[%emt 0:00:01]} 22. Qxf6+ {[%emt 0:00:02]} Kg8 {[%emt 0:00:00]} 23. Re3 {[%emt 0:00:46]} Qd8 {[%emt 0:00:11]} 24. Qh6 {[%emt 0:01:20]} Kh8 {[%emt 0:00:22]} 25. Rg3 {[%emt 0:00:26]} Ne2+ {[%emt 0:00:04]} 26. Kh2 {[%emt 0:00:26]} Nxg3 {[%emt 0:00:01]} 27. Kxg3 {[%emt 0:00:02]} Rg8+ {[%emt 0:00:07]} 0-1

[Event "European Women Rapid-ch 2023"]
[Site "Monaco"]
[Date "2024.01.14"]
[Round "8.14"]
[White "Zhukova, Natalia"]
[Black "Hryshchenko, Kamila"]
[Result "1-0"]
[ECO "E97"]
[WhiteElo "2301"]
[BlackElo "2192"]
[Annotator "RC"]
[PlyCount "89"]
[EventDate "2023.12.19"]
[EventType "swiss"]
[EventCountry "MNC"]
[SourceTitle "playchess.com"]
[Source "ChessBase"]
[SourceQuality "1"]
[TimeControl "900+10"]

1. d4 {[%emt 0:00:02]} d6 {[%emt 0:00:01]} 2. c4 {[%emt 0:00:02]} g6 {[%emt 0:00:02]} 3. e4 {[%emt 0:00:02]} Bg7 {[%emt 0:00:02]} 4. Nc3 {[%emt 0:00:02]} Nf6 {[%emt 0:00:06]} 5. Be2 {[%emt 0:00:05]} O-O {[%emt 0:00:09]} 6. Nf3 {[%emt 0:00:03]} e5 {[%emt 0:00:04]} 7. O-O {[%emt 0:00:03]} Nc6 {[%emt 0:00:28]} 8. d5 {[%emt 0:00:02]} Ne7 {[%emt 0:00:04]} 9. b4 {[%emt 0:00:02]} a5 {[%emt 0:00:09]} 10. Ba3 {[%emt 0:00:12]} axb4 {[%emt 0:00:56]} 11. Bxb4 {[%emt 0:00:01]} Ne8 {[%emt 0:01:09]} 12. a4 {[%emt 0:01:42]} h6 {[%emt 0:00:10]} 13. c5 {[%emt 0:00:29]} f5 {[%emt 0:00:25]} 14. Nd2 {[%emt 0:01:58]} f4 {[%emt 0:01:09]} 15. Nc4 {[%emt 0:00:41]} Rf6 {[%emt 0:01:34]} 16. Nb5 {[%emt 0:00:49]} g5 {[%emt 0:01:39]} 17. Rc1 {[%emt 0:02:07]} Ng6 {[%emt 0:00:23]} 18. Bh5 {[%emt 0:00:38]} Bf8 {[%emt 0:01:53]} 19. cxd6 {[%emt 0:01:51]} cxd6 {[%emt 0:00:02]} 20. a5 {[%emt 0:05:43]} Bd7 {[%emt 0:00:33]} 21. Nc3 {[%emt 0:00:02]} Ng7 {[%emt 0:00:11]} 22. Nb6 {[%emt 0:00:43]} Nxh5 {[%emt 0:01:51]} 23. Qxh5 {[%emt 0:00:12]} Rb8 {[%emt 0:02:01]} 24. Nxd7 {[%emt 0:00:33]} Qxd7 {[%emt 0:00:01]} 25. f3 {[%emt 0:00:12]} Kg7 {[%emt 0:00:46]} 26. Rc2 {[%emt 0:00:17]} Be7 {[%emt 0:00:03]} 27. Rfc1 {[%emt 0:00:01]} Ra8 {[%emt 0:00:16]} 28. Nd1 {[%emt 0:00:32]} Qb5 {[%emt 0:00:11]} 29. Be1 {[%emt 0:00:15]} Rf7 {[%emt 0:01:29]} 30. Nf2 {[%emt 0:00:04]} Rh8 {[%emt 0:00:39]} 31. Ng4 {[%emt 0:00:30]} Bd8 {[%emt 0:00:12]} 32. Rc8 {[%emt 0:00:09]} Rd7 {[%emt 0:00:01]} 33. h4 {[%emt 0:00:21]} Rh7 {[%emt 0:00:07]} 34. Bc3 {[%emt 0:00:08]} Ne7 {[%emt 0:00:41]} 35. Qe8 {[%emt 0:00:10]} Nxc8 {[%emt 0:00:10]} 36. Nxe5 {[%emt 0:00:13]} dxe5 {[%emt 0:00:59]} 37. Bxe5+ {[%emt 0:00:01]} Bf6 {[%emt 0:00:04]} 38. Rxc8 {[%emt 0:00:08]} Qb1+ {[%emt 0:00:25]} 39. Kh2 {[%emt 0:00:01]} Bxe5 {[%emt 0:00:11]} 40. Qxd7+ {[%emt 0:00:06]} Kg6 {[%emt 0:00:11]} 41. Qf5+ {[%emt 0:00:19]} Kh5 {[%emt 0:00:11]} 42. Qg4+ {[%emt 0:00:19]} Kg6 {[%emt 0:00:03]} 43. h5+ {[%emt 0:00:01]} Kg7 {[%emt 0:00:21]} 44. Qd7+ {[%emt 0:00:02]} Kf6 {[%emt 0:00:01]} 45. Rf8+ {[%emt 0:00:09]} 1-0

[Event "European Women Rapid-ch 2023"]
[Site "Monaco"]
[Date "2024.01.14"]
[Round "8.15"]
[White "Haussernot, Cecile"]
[Black "Bensdorp-De Labaca, Marlies"]
[Result "0-1"]
[ECO "B01"]
[WhiteElo "2136"]
[BlackElo "2237"]
[Annotator "TA"]
[PlyCount "76"]
[EventDate "2023.12.19"]
[EventType "swiss"]
[EventCountry "MNC"]
[SourceTitle "playchess.com"]
[Source "ChessBase"]
[SourceQuality "1"]
[TimeControl "900+10"]

{[%evp 10,76,48,26,31,18,27,30,33,33,28,-17,-13,-14,-14,-12,-26,-36,0,-82,14,-73,0,-31,-10,-11,-25,-45,-25,-29,0,-18,-17,-133,3,-96,0,-146,-129,-125,-131,-134,-16,-39,0,-30,-27,-46,-35,-39,0,-70,0,-76,-68,-946,-933,-1734,-1693,-1679,-1719,-1651,-1648,-1604,-1537,-1722,-1735,-29992,-29993]} 1. e4 {[%emt 0:03:06]} d5 {[%emt 0:00:01]} 2. exd5 {[%emt 0:00:02]} Qxd5 {[%emt 0:00:01]} 3. Nc3 {[%emt 0:00:01]} Qa5 {[%emt 0:00:01]} 4. d4 {[%emt 0:00:14]} Nf6 {[%emt 0:00:02]} 5. Nf3 {[%emt 0:00:16]} Bf5 {[%emt 0:00:03]} 6. Bd2 {[%emt 0:00:55]} e6 {[%emt 0:00:36]} 7. Bc4 {[%emt 0:00:07][%cal Oc3d5] [#] Threatens to win with Nd5!} Bb4 {[%emt 0:00:05] OK} 8. a3 {[%emt 0:01:11] OK} Bxc3 {[%emt 0:00:02] OK. White has an edge.} 9. Bxc3 {[%emt 0:00:02]} Qb6 {[%emt 0:00:02] OK} 10. Ne5 {[%emt 0:02:10] Inaccurate} Nc6 {[%emt 0:02:04] OK} 11. O-O {[%emt 0:00:52] OK} O-O {[%emt 0:00:14] OK} 12. Nxc6 {[%emt 0:01:07] OK} Qxc6 {[%emt 0:00:01]} 13. Qe2 {[%emt 0:00:11]} a6 {[%emt 0:00:35] Inaccurate} 14. Rad1 {[%emt 0:00:45] Mistake (0.8)} (14. Bb3 $11) 14... Rad8 {[%emt 0:01:45] Mistake (1.0)} (14... Bxc2 $17 15. Rc1 Be4) 15. Rfe1 {[%emt 0:01:42] Mistake (0.9)} (15. Bb4 $11) 15... Rd7 {[%emt 0:00:39] Black is more active. Mistake (0.7)} (15... Bxc2 $17 16. Rc1 Be4) 16. Bd3 {[%emt 0:00:18] Inaccurate} Bxd3 {[%emt 0:00:16]} 17. Rxd3 {[%emt 0:00:02]} Nd5 {[%emt 0:01:01] OK} 18. Qe4 {[%emt 0:02:39] Repels Nf4} Qb6 {[%emt 0:02:22]} 19. Rh3 {[%emt 0:00:36][%csl Gh3][%cal Re4h7] [#] OK} g6 {[%emt 0:00:41] Inaccurate} 20. Qh4 {[%emt 0:01:31][%csl Gh3][%cal Rh4h7]} f5 {[%emt 0:00:25] OK} 21. Bd2 {[%emt 0:00:21] Mistake (1.2)} (21. Qg5 $11) 21... Nf6 {[%emt 0:03:01] Mistake (1.4)} (21... Qxb2 $17 22. Bh6 Re8) 22. Bb4 {[%emt 0:00:15] Mistake (1.0)} (22. Rd3 $11 {remains equal.}) 22... Rff7 {[%emt 0:00:03] Mistake (1.0)} ({Black should play} 22... Rxd4 $17 23. Qh6 Rf7) 23. Bc5 {[%emt 0:00:21] Mistake (1.5)} (23. Bc3 $11) 23... Qxb2 $17 {[%emt 0:01:18] ...b6 would now be deadly. Best (Easy)} 24. Rb3 {[%emt 0:00:05] OK} Qxc2 $40 {[%emt 0:00:05][%mdl 128] Black has strong attack. OK} 25. Rxb7 {[%emt 0:00:02][%cal Of2f3] OK} Rd8 {[%emt 0:00:50] Mistake (1.2)} (25... Ne4 $17 26. Rb8+ Kg7) 26. h3 {[%emt 0:00:05]} Qc4 {[%emt 0:00:38] Inaccurate} 27. Qg5 {[%emt 0:00:14] Inaccurate} Qd5 {[%emt 0:00:13] OK} 28. Reb1 {[%emt 0:00:20]} Kg7 {[%emt 0:00:34]} 29. Qf4 {[%emt 0:00:07] OK} Qc6 {[%emt 0:00:20] Inaccurate} 30. Rb8 {[%emt 0:00:07] Mistake (0.7)} ({White should try} 30. f3 $11) 30... Rfd7 {[%emt 0:00:12] Mistake (0.7)} ({Better is} 30... Rxb8 $15 31. Rxb8 Qe4 32. Qxe4 Nxe4) 31. h4 {[%emt 0:00:06] Mistake (0.8)} (31. f3 $11 {keeps the balance.}) 31... Qe4 {[%emt 0:00:34]} (31... Rxb8 $5 {simplifies} 32. Rxb8 Qe4 33. Qxe4 Nxe4 34. Rc8 Nc3) 32. Qg3 {[%emt 0:00:25][%mdl 8192] This move loses the game for White. Loses game (8.8)} (32. Qxe4 $15 Nxe4 33. Rxd8 Rxd8 34. Rb7) 32... Rxb8 $19 {[%emt 0:00:33] Best (Easy)} 33. Rxb8 {[%emt 0:00:13] Inaccurate} Qe1+ {[%emt 0:00:01]} 34. Kh2 {[%emt 0:00:00]} Ng4+ {[%emt 0:00:01]} 35. Qxg4 {[%emt 0:00:08]} fxg4 {[%emt 0:00:01]} 36. Bf8+ {[%emt 0:00:02]} Kf7 {[%emt 0:00:01]} 37. Bh6 {[%emt 0:00:04]} Rxd4 {[%emt 0:00:29]} 38. Rh8 {[%emt 0:00:04]} Qe5+ {[%emt 0:00:04] Weighted Error Value: White=0.99/Black=0.31.  Loses game:     	White=1     	---        Mistake:       	White=7     	Black=6      Inaccurate:     	White=4     	Black=4      OK:         	White=7     	Black=9      Best:        	---       	Black=2} (38... Qxf2 39. Rf8+ (39. Rxh7+ Kg8 40. Rg7+ Kh8) 39... Ke7 40. Rxf2 $18) 0-1

[Event "European Women Rapid-ch 2023"]
[Site "Monaco"]
[Date "2024.01.14"]
[Round "8.16"]
[White "Guillo Longares, Cecilia"]
[Black "Kulon, Klaudia"]
[Result "0-1"]
[ECO "E62"]
[WhiteElo "2096"]
[BlackElo "2323"]
[Annotator "RC"]
[PlyCount "114"]
[EventDate "2023.12.19"]
[EventType "swiss"]
[EventCountry "MNC"]
[SourceTitle "playchess.com"]
[Source "ChessBase"]
[SourceQuality "1"]
[TimeControl "900+10"]

1. d4 {[%emt 0:00:01]} Nf6 {[%emt 0:00:01]} 2. c4 {[%emt 0:00:02]} g6 {[%emt 0:00:02]} 3. Nf3 {[%emt 0:00:02]} Bg7 {[%emt 0:00:02]} 4. g3 {[%emt 0:00:02]} O-O {[%emt 0:00:02]} 5. Bg2 {[%emt 0:00:01]} d6 {[%emt 0:00:01]} 6. Nc3 {[%emt 0:00:02]} Nc6 {[%emt 0:00:02]} 7. d5 {[%emt 0:00:03]} Na5 {[%emt 0:00:06]} 8. b3 {[%emt 0:00:02]} c6 {[%emt 0:00:09]} 9. Bb2 {[%emt 0:00:26]} cxd5 {[%emt 0:00:14]} 10. cxd5 {[%emt 0:00:32]} Bd7 {[%emt 0:00:34]} 11. O-O {[%emt 0:00:48]} b5 {[%emt 0:00:24]} 12. a3 {[%emt 0:01:05]} Rc8 {[%emt 0:00:25]} 13. Nd4 {[%emt 0:00:13]} Qb6 {[%emt 0:00:19]} 14. Qd3 {[%emt 0:01:48]} a6 {[%emt 0:00:16]} 15. Na2 {[%emt 0:00:36]} Ng4 {[%emt 0:01:41]} 16. h3 {[%emt 0:02:22]} Ne5 {[%emt 0:00:03]} 17. Qe3 {[%emt 0:00:06]} Nac4 {[%emt 0:01:23]} 18. bxc4 {[%emt 0:01:19]} Nxc4 {[%emt 0:00:02]} 19. Qxe7 {[%emt 0:00:20]} Rc7 {[%emt 0:03:36]} 20. Bc3 {[%emt 0:01:45]} Bxd4 {[%emt 0:00:04]} 21. Bxd4 {[%emt 0:00:02]} Qxd4 {[%emt 0:00:01]} 22. Nb4 {[%emt 0:00:36]} Re8 {[%emt 0:00:52]} 23. Nc6 {[%emt 0:01:20]} Rxc6 {[%emt 0:02:37]} 24. Qxd7 {[%emt 0:00:15]} Rcc8 {[%emt 0:00:01]} 25. e3 {[%emt 0:00:16]} Qb6 {[%emt 0:00:37]} 26. Qg4 {[%emt 0:00:32]} Ne5 {[%emt 0:00:31]} 27. Qe2 {[%emt 0:00:11]} Rc3 {[%emt 0:00:11]} 28. Rfc1 {[%emt 0:00:40]} Rec8 {[%emt 0:00:01]} 29. Qd2 {[%emt 0:00:37]} Rxc1+ {[%emt 0:01:06]} 30. Rxc1 {[%emt 0:00:01]} Rxc1+ {[%emt 0:00:02]} 31. Qxc1 {[%emt 0:00:04]} Qc5 {[%emt 0:00:01]} 32. Qa1 {[%emt 0:00:56]} a5 {[%emt 0:00:15]} 33. g4 {[%emt 0:00:36]} b4 {[%emt 0:01:05]} 34. axb4 {[%emt 0:00:06]} axb4 {[%emt 0:00:01]} 35. g5 {[%emt 0:00:34]} Qc3 {[%emt 0:00:29]} 36. Qxc3 {[%emt 0:01:15]} bxc3 {[%emt 0:00:02]} 37. Be4 {[%emt 0:00:02]} Nf3+ {[%emt 0:00:15]} 38. Kg2 {[%emt 0:00:22]} c2 {[%emt 0:00:12]} 39. Bxc2 {[%emt 0:00:08]} Ne1+ {[%emt 0:00:01]} 40. Kf1 {[%emt 0:00:10]} Nxc2 {[%emt 0:00:01]} 41. Ke2 {[%emt 0:00:01]} Kf8 {[%emt 0:00:06]} 42. Kd3 {[%emt 0:00:10]} Na3 {[%emt 0:00:34]} 43. f4 {[%emt 0:00:34]} Ke7 {[%emt 0:00:01]} 44. e4 {[%emt 0:00:07]} Kd7 {[%emt 0:00:08]} 45. Kd4 {[%emt 0:00:15]} Kc7 {[%emt 0:00:16]} 46. e5 {[%emt 0:00:13]} Nc2+ {[%emt 0:00:04]} 47. Ke4 {[%emt 0:00:03]} Kd7 {[%emt 0:00:17]} 48. Kd3 {[%emt 0:00:19]} Nb4+ {[%emt 0:00:13]} 49. Kc4 {[%emt 0:00:03]} Na6 {[%emt 0:00:06]} 50. h4 {[%emt 0:00:17]} Nc5 {[%emt 0:00:02]} 51. Kd4 {[%emt 0:00:21]} Kc7 {[%emt 0:00:02]} 52. Kc4 {[%emt 0:00:07]} Ne4 {[%emt 0:00:17]} 53. Kd3 {[%emt 0:00:20]} Ng3 {[%emt 0:00:03]} 54. Kc4 {[%emt 0:00:39]} Nf5 {[%emt 0:00:03]} 55. e6 {[%emt 0:00:02]} fxe6 {[%emt 0:00:07]} 56. dxe6 {[%emt 0:00:01]} Kd8 {[%emt 0:00:02]} 57. Kd5 {[%emt 0:00:09]} Ke7 {[%emt 0:00:01]} 0-1